[Event "Titled Tuesday Blitz March 15 Early 2022"]
[White "Skliarov, Viktor"]
[Black "Quirke, Jeffrey"]
[WhiteFideId "14106736"]
[BlackFideId "2013029"]
[WhiteElo "2229"]
[BlackElo "2257"]
[Result "1-0"]
[Round "01"]
[TimeControl "180+1"]
[Date "2022.03.15"]
[WhiteClock "0:00:19"]
[BlackClock "0:00:01"]

1. e4 {[%clk 0:02:58]}  c5 {[%clk 0:02:59]} 2. Nf3 {[%clk 0:02:58]}  e6 {[%clk 0:02:59]} 3. c3 {[%clk 0:02:58]}  Nf6 {[%clk 0:02:59]} 4. Bd3 {[%clk 0:02:57]}  d5 {[%clk 0:02:57]} 5. e5 {[%clk 0:02:57]}  Nfd7 {[%clk 0:02:57]} 6. Bc2 {[%clk 0:02:57]}  Nc6 {[%clk 0:02:58]} 7. d4 {[%clk 0:02:58]}  Be7 {[%clk 0:02:47]} 8. O-O {[%clk 0:02:58]}  b6 {[%clk 0:02:46]} 9. a3 {[%clk 0:02:58]}  Bb7 {[%clk 0:02:38]} 10. b4 {[%clk 0:02:58]}  cxd4 {[%clk 0:02:34]} 11. cxd4 {[%clk 0:02:59]}  Rc8 {[%clk 0:02:29]} 12. Nbd2 {[%clk 0:02:55]}  O-O {[%clk 0:02:20]} 13. Re1 {[%clk 0:02:50]}  Re8 {[%clk 0:02:02]} 14. Nf1 {[%clk 0:02:43]}  f6 {[%clk 0:01:58]} 15. Qd3 {[%clk 0:02:23]}  Nf8 {[%clk 0:01:57]} 16. exf6 {[%clk 0:02:11]}  Bxf6 {[%clk 0:01:57]} 17. Bf4 {[%clk 0:02:12]}  Nxd4 {[%clk 0:01:40]} 18. Nxd4 {[%clk 0:02:08]}  Bxd4 {[%clk 0:01:40]} 19. Qxd4 {[%clk 0:01:55]}  Rxc2 {[%clk 0:01:40]} 20. Ne3 {[%clk 0:01:50]}  Rc8 {[%clk 0:01:35]} 21. Be5 {[%clk 0:01:23]}  Qe7 {[%clk 0:01:14]} 22. Rac1 {[%clk 0:00:34]}  Ng6 {[%clk 0:01:11]} 23. h3 {[%clk 0:00:34]}  Nxe5 {[%clk 0:00:40]} 24. Qxe5 {[%clk 0:00:35]}  Qf6 {[%clk 0:00:41]} 25. Ng4 {[%clk 0:00:30]}  Qxe5 {[%clk 0:00:40]} 26. Nxe5 {[%clk 0:00:31]}  Kf8 {[%clk 0:00:33]} 27. f4 {[%clk 0:00:31]}  Ke7 {[%clk 0:00:31]} 28. Kf2 {[%clk 0:00:31]}  a6 {[%clk 0:00:13]} 29. g3 {[%clk 0:00:28]}  Rxc1 {[%clk 0:00:12]} 30. Rxc1 {[%clk 0:00:28]}  Rc8 {[%clk 0:00:13]} 31. Rxc8 {[%clk 0:00:27]}  Bxc8 {[%clk 0:00:13]} 32. Ke3 {[%clk 0:00:28]}  Bd7 {[%clk 0:00:11]} 33. Kd4 {[%clk 0:00:28]}  Be8 {[%clk 0:00:11]} 34. Nf3 {[%clk 0:00:23]}  Kd6 {[%clk 0:00:08]} 35. Ng5 {[%clk 0:00:22]}  h6 {[%clk 0:00:07]} 36. Nf3 {[%clk 0:00:23]}  Bg6 {[%clk 0:00:04]} 37. Ne5 {[%clk 0:00:23]}  Be8 {[%clk 0:00:03]} 38. g4 {[%clk 0:00:22]}  a5 {[%clk 0:00:03]} 39. h4 {[%clk 0:00:22]}  axb4 {[%clk 0:00:03]} 40. axb4 {[%clk 0:00:23]}  g6 {[%clk 0:00:01]} 41. g5 {[%clk 0:00:19]}  hxg5 {[%clk 0:00:01]} 42. hxg5 {[%clk 0:00:19]}  Ke7 {[%clk 0:00:01]} 43. Ng4 {[%clk 0:00:19]}  Kd6 {[%clk 0:00:01]} 44. Nf6 {[%clk 0:00:19]} 1-0


[Site "https://www.chess.com"]

[Event "Titled Tuesday Blitz March 15 Early 2022"]
[White "Slugin, Sergey"]
[Black "Moroni, Luca Jr"]
[WhiteFideId "4122569"]
[BlackFideId "865834"]
[WhiteElo "2358"]
[BlackElo "2573"]
[Result "1/2-1/2"]
[Round "01"]
[TimeControl "180+1"]
[Date "2022.03.15"]
[WhiteClock "0:00:10"]
[BlackClock "0:00:24"]

1. c4 {[%clk 0:03:00]}  g6 {[%clk 0:02:59]} 2. Nf3 {[%clk 0:03:00]}  Bg7 {[%clk 0:02:59]} 3. g3 {[%clk 0:03:01]}  d6 {[%clk 0:02:56]} 4. Bg2 {[%clk 0:03:01]}  Bd7 {[%clk 0:02:57]} 5. h4 {[%clk 0:02:57]}  Nf6 {[%clk 0:02:55]} 6. Nc3 {[%clk 0:02:54]}  c5 {[%clk 0:02:54]} 7. d4 {[%clk 0:02:55]}  cxd4 {[%clk 0:02:52]} 8. Nxd4 {[%clk 0:02:56]}  Nc6 {[%clk 0:02:52]} 9. Nc2 {[%clk 0:02:31]}  Rc8 {[%clk 0:02:48]} 10. b3 {[%clk 0:02:12]}  O-O {[%clk 0:02:40]} 11. Bb2 {[%clk 0:02:12]}  Qa5 {[%clk 0:02:35]} 12. O-O {[%clk 0:02:10]}  Qh5 {[%clk 0:02:28]} 13. Ne3 {[%clk 0:01:59]}  b6 {[%clk 0:02:15]} 14. Qd2 {[%clk 0:01:27]}  g5 {[%clk 0:02:10]} 15. hxg5 {[%clk 0:01:20]}  Qxg5 {[%clk 0:02:09]} 16. Rad1 {[%clk 0:01:17]}  Qh5 {[%clk 0:02:06]} 17. Ncd5 {[%clk 0:01:15]}  Nxd5 {[%clk 0:02:03]} 18. Nxd5 {[%clk 0:01:16]}  Bxb2 {[%clk 0:01:52]} 19. Qxb2 {[%clk 0:01:17]}  Qg5 {[%clk 0:01:52]} 20. Rd3 {[%clk 0:01:05]}  Be6 {[%clk 0:01:43]} 21. Nf4 {[%clk 0:00:57]}  Bf5 {[%clk 0:01:31]} 22. Rd5 {[%clk 0:00:56]}  Ne5 {[%clk 0:01:29]} 23. Rxe5 {[%clk 0:00:50]}  dxe5 {[%clk 0:01:27]} 24. Qxe5 {[%clk 0:00:51]}  h6 {[%clk 0:01:07]} 25. Nd5 {[%clk 0:00:46]}  Rfe8 {[%clk 0:01:02]} 26. f4 {[%clk 0:00:44]}  Qg6 {[%clk 0:00:55]} 27. Nxe7+ {[%clk 0:00:42]}  Rxe7 {[%clk 0:00:55]} 28. Qxe7 {[%clk 0:00:43]}  Qxg3 {[%clk 0:00:52]} 29. Rf3 {[%clk 0:00:38]}  Qg7 {[%clk 0:00:48]} 30. Kh2 {[%clk 0:00:36]}  Bg4 {[%clk 0:00:48]} 31. Rg3 {[%clk 0:00:36]}  h5 {[%clk 0:00:48]} 32. Bf3 {[%clk 0:00:33]}  f5 {[%clk 0:00:38]} 33. Qe6+ {[%clk 0:00:30]}  Kh7 {[%clk 0:00:35]} 34. Qxc8 {[%clk 0:00:29]}  Qf6 {[%clk 0:00:33]} 35. Qd7+ {[%clk 0:00:27]}  Kh8 {[%clk 0:00:31]} 36. Bxg4 {[%clk 0:00:27]}  fxg4 {[%clk 0:00:27]} 37. Re3 {[%clk 0:00:27]}  Qxf4+ {[%clk 0:00:26]} 38. Rg3 {[%clk 0:00:12]}  Qf2+ {[%clk 0:00:26]} 39. Rg2 {[%clk 0:00:06]}  Qh4+ {[%clk 0:00:26]} 40. Kg1 {[%clk 0:00:07]}  Qe1+ {[%clk 0:00:27]} 41. Kh2 {[%clk 0:00:08]}  Qh4+ {[%clk 0:00:26]} 42. Kg1 {[%clk 0:00:09]}  Qe1+ {[%clk 0:00:24]} 43. Kh2 {[%clk 0:00:10]}  Qh4+ {[%clk 0:00:24]} 1/2-1/2


[Site "https://www.chess.com"]

[Event "Titled Tuesday Blitz March 15 Early 2022"]
[White "Tarhan, Adar"]
[Black "Deac, Bogdan-Daniel"]
[WhiteFideId "34544712"]
[BlackFideId "1226380"]
[WhiteElo "1802"]
[BlackElo "2646"]
[Result "0-1"]
[Round "01"]
[TimeControl "180+1"]
[Date "2022.03.15"]
[WhiteClock "0:00:11"]
[BlackClock "0:00:06"]

1. e4 {[%clk 0:03:00]}  g6 {[%clk 0:02:57]} 2. d4 {[%clk 0:03:00]}  Bg7 {[%clk 0:02:58]} 3. Nc3 {[%clk 0:02:59]}  c6 {[%clk 0:02:58]} 4. Be3 {[%clk 0:02:57]}  d5 {[%clk 0:02:57]} 5. e5 {[%clk 0:02:57]}  Nh6 {[%clk 0:02:56]} 6. Bd3 {[%clk 0:02:54]}  Ng4 {[%clk 0:02:51]} 7. Bf4 {[%clk 0:02:52]}  Qb6 {[%clk 0:02:50]} 8. Nge2 {[%clk 0:02:44]}  f6 {[%clk 0:02:46]} 9. exf6 {[%clk 0:02:42]}  Nxf6 {[%clk 0:02:45]} 10. Qd2 {[%clk 0:02:40]}  Qxb2 {[%clk 0:02:38]} 11. O-O {[%clk 0:02:38]}  Qb6 {[%clk 0:02:36]} 12. Ng3 {[%clk 0:02:32]}  O-O {[%clk 0:02:32]} 13. Rfe1 {[%clk 0:02:31]}  Qd8 {[%clk 0:02:30]} 14. Bh6 {[%clk 0:02:28]}  Qd6 {[%clk 0:02:21]} 15. Bxg7 {[%clk 0:02:21]}  Kxg7 {[%clk 0:02:22]} 16. Qg5 {[%clk 0:02:22]}  Ng8 {[%clk 0:01:59]} 17. Re5 {[%clk 0:02:16]}  Nd7 {[%clk 0:01:44]} 18. Re3 {[%clk 0:01:45]}  Ndf6 {[%clk 0:01:22]} 19. Rae1 {[%clk 0:01:42]}  Kh8 {[%clk 0:01:21]} 20. Qh4 {[%clk 0:01:23]}  Ng4 {[%clk 0:00:48]} 21. R3e2 {[%clk 0:01:08]}  Qf6 {[%clk 0:00:42]} 22. Qxf6+ {[%clk 0:01:01]}  N4xf6 {[%clk 0:00:43]} 23. h3 {[%clk 0:00:56]}  Bd7 {[%clk 0:00:39]} 24. Re5 {[%clk 0:00:48]}  Rac8 {[%clk 0:00:36]} 25. Nce2 {[%clk 0:00:45]}  Ne8 {[%clk 0:00:28]} 26. f4 {[%clk 0:00:38]}  Nd6 {[%clk 0:00:26]} 27. c3 {[%clk 0:00:35]}  e6 {[%clk 0:00:21]} 28. Rf1 {[%clk 0:00:33]}  Nf6 {[%clk 0:00:19]} 29. Nc1 {[%clk 0:00:31]}  Nf5 {[%clk 0:00:15]} 30. Bxf5 {[%clk 0:00:26]}  gxf5 {[%clk 0:00:15]} 31. Nd3 {[%clk 0:00:26]}  b6 {[%clk 0:00:14]} 32. Re3 {[%clk 0:00:26]}  c5 {[%clk 0:00:13]} 33. Ne5 {[%clk 0:00:26]}  Be8 {[%clk 0:00:13]} 34. Nf3 {[%clk 0:00:26]}  Ne4 {[%clk 0:00:11]} 35. Ng5 {[%clk 0:00:18]}  Bd7 {[%clk 0:00:10]} 36. N3xe4 {[%clk 0:00:12]}  fxe4 {[%clk 0:00:10]} 37. g4 {[%clk 0:00:12]}  cxd4 {[%clk 0:00:09]} 38. cxd4 {[%clk 0:00:13]}  h6 {[%clk 0:00:08]} 39. h4 {[%clk 0:00:10]}  hxg5 {[%clk 0:00:08]} 40. hxg5 {[%clk 0:00:11]}  Kg7 {[%clk 0:00:08]} 41. Kg2 {[%clk 0:00:11]}  Rc4 {[%clk 0:00:08]} 42. Rh1 {[%clk 0:00:10]}  Rc2+ {[%clk 0:00:05]} 43. Kf1 {[%clk 0:00:10]}  Rxf4+ {[%clk 0:00:05]} 44. Ke1 {[%clk 0:00:11]}  Rc1+ {[%clk 0:00:05]} 45. Kd2 {[%clk 0:00:11]}  Rxh1 {[%clk 0:00:06]} 0-1


[Site "https://www.chess.com"]

[Event "Titled Tuesday Blitz March 15 Early 2022"]
[White "Tari, Aryan"]
[Black "Martin Carmona, Gaston Manuel"]
[WhiteFideId "1510045"]
[BlackFideId "22284567"]
[WhiteElo "2567"]
[BlackElo "2161"]
[Result "1/2-1/2"]
[Round "01"]
[TimeControl "180+1"]
[Date "2022.03.15"]
[WhiteClock "0:00:11"]
[BlackClock "0:00:11"]

1. e4 {[%clk 0:02:58]}  e6 {[%clk 0:03:00]} 2. d4 {[%clk 0:02:57]}  d5 {[%clk 0:03:00]} 3. Nc3 {[%clk 0:02:49]}  Bb4 {[%clk 0:02:59]} 4. exd5 {[%clk 0:02:32]}  exd5 {[%clk 0:02:57]} 5. Bd3 {[%clk 0:02:32]}  Nf6 {[%clk 0:02:54]} 6. Nf3 {[%clk 0:02:28]}  O-O {[%clk 0:02:53]} 7. O-O {[%clk 0:02:28]}  Bg4 {[%clk 0:02:45]} 8. Bg5 {[%clk 0:02:16]}  c6 {[%clk 0:02:45]} 9. Be2 {[%clk 0:01:59]}  Nbd7 {[%clk 0:02:37]} 10. Ne5 {[%clk 0:01:59]}  Bxe2 {[%clk 0:02:32]} 11. Nxe2 {[%clk 0:02:00]}  Be7 {[%clk 0:02:28]} 12. Nd3 {[%clk 0:01:57]}  Ne4 {[%clk 0:02:20]} 13. Bxe7 {[%clk 0:01:57]}  Qxe7 {[%clk 0:02:21]} 14. c3 {[%clk 0:01:53]}  Rae8 {[%clk 0:02:17]} 15. Ng3 {[%clk 0:01:52]}  Nxg3 {[%clk 0:02:10]} 16. hxg3 {[%clk 0:01:53]}  Qd6 {[%clk 0:02:10]} 17. Qb3 {[%clk 0:01:48]}  b6 {[%clk 0:02:04]} 18. Rae1 {[%clk 0:01:49]}  Nf6 {[%clk 0:02:01]} 19. Qa4 {[%clk 0:01:48]}  Qc7 {[%clk 0:01:44]} 20. Nb4 {[%clk 0:01:43]}  b5 {[%clk 0:01:18]} 21. Qa6 {[%clk 0:01:40]}  Rc8 {[%clk 0:01:05]} 22. Re2 {[%clk 0:01:40]}  Ne4 {[%clk 0:01:00]} 23. Rfe1 {[%clk 0:01:40]}  f5 {[%clk 0:00:53]} 24. f3 {[%clk 0:01:40]}  Nxg3 {[%clk 0:00:53]} 25. Re7 {[%clk 0:01:40]}  Qf4 {[%clk 0:00:54]} 26. Nd3 {[%clk 0:01:05]}  Qh4 {[%clk 0:00:51]} 27. Nf2 {[%clk 0:01:06]}  Ne4 {[%clk 0:00:37]} 28. R1xe4 {[%clk 0:01:01]}  fxe4 {[%clk 0:00:36]} 29. Qb7 {[%clk 0:01:00]}  exf3 {[%clk 0:00:33]} 30. Rxg7+ {[%clk 0:01:00]}  Kh8 {[%clk 0:00:33]} 31. Rg4 {[%clk 0:00:51]}  Qh6 {[%clk 0:00:29]} 32. g3 {[%clk 0:00:45]}  Rg8 {[%clk 0:00:26]} 33. Qd7 {[%clk 0:00:29]}  Rxg4 {[%clk 0:00:23]} 34. Nxg4 {[%clk 0:00:30]}  Qf8 {[%clk 0:00:17]} 35. Kf2 {[%clk 0:00:27]}  Re8 {[%clk 0:00:17]} 36. Ne5 {[%clk 0:00:27]}  Re7 {[%clk 0:00:15]} 37. Qxc6 {[%clk 0:00:28]}  Qf5 {[%clk 0:00:12]} 38. Qxd5 {[%clk 0:00:26]}  Kg7 {[%clk 0:00:08]} 39. Qd6 {[%clk 0:00:22]}  Qf6 {[%clk 0:00:07]} 40. Qxf6+ {[%clk 0:00:21]}  Kxf6 {[%clk 0:00:08]} 41. Kxf3 {[%clk 0:00:22]}  Ke6 {[%clk 0:00:08]} 42. Ke4 {[%clk 0:00:20]}  Rg7 {[%clk 0:00:08]} 43. g4 {[%clk 0:00:19]}  Rg5 {[%clk 0:00:08]} 44. b3 {[%clk 0:00:19]}  Rg8 {[%clk 0:00:07]} 45. c4 {[%clk 0:00:19]}  bxc4 {[%clk 0:00:08]} 46. bxc4 {[%clk 0:00:20]}  Rb8 {[%clk 0:00:08]} 47. d5+ {[%clk 0:00:19]}  Kd6 {[%clk 0:00:09]} 48. Kd4 {[%clk 0:00:19]}  Rb2 {[%clk 0:00:08]} 49. c5+ {[%clk 0:00:20]}  Ke7 {[%clk 0:00:09]} 50. d6+ {[%clk 0:00:20]}  Ke6 {[%clk 0:00:09]} 51. Nc4 {[%clk 0:00:21]}  Rxa2 {[%clk 0:00:09]} 52. c6 {[%clk 0:00:22]}  Ra1 {[%clk 0:00:07]} 53. Kc5 {[%clk 0:00:20]}  Rc1 {[%clk 0:00:06]} 54. c7 {[%clk 0:00:13]}  Kd7 {[%clk 0:00:06]} 55. Kd5 {[%clk 0:00:14]}  Rd1+ {[%clk 0:00:06]} 56. Kc5 {[%clk 0:00:14]}  Rc1 {[%clk 0:00:06]} 57. g5 {[%clk 0:00:14]}  a5 {[%clk 0:00:05]} 58. Kb5 {[%clk 0:00:15]}  a4 {[%clk 0:00:03]} 59. Nb6+ {[%clk 0:00:09]}  Kxd6 {[%clk 0:00:03]} 60. c8=Q {[%clk 0:00:08]}  Rxc8 {[%clk 0:00:04]} 61. Nxc8+ {[%clk 0:00:09]}  Ke5 {[%clk 0:00:03]} 62. Kxa4 {[%clk 0:00:06]}  Kf5 {[%clk 0:00:03]} 63. Nd6+ {[%clk 0:00:06]}  Kxg5 {[%clk 0:00:04]} 64. Ne4+ {[%clk 0:00:06]}  Kf4 {[%clk 0:00:04]} 65. Nf2 {[%clk 0:00:06]}  h5 {[%clk 0:00:04]} 66. Kb3 {[%clk 0:00:05]}  Kg3 {[%clk 0:00:05]} 67. Ne4+ {[%clk 0:00:05]}  Kg2 {[%clk 0:00:05]} 68. Kc3 {[%clk 0:00:05]}  h4 {[%clk 0:00:06]} 69. Ng5 {[%clk 0:00:05]}  Kg3 {[%clk 0:00:07]} 70. Kd3 {[%clk 0:00:06]}  Kg4 {[%clk 0:00:07]} 71. Ke2 {[%clk 0:00:07]}  Kxg5 {[%clk 0:00:07]} 72. Kf2 {[%clk 0:00:07]}  Kg4 {[%clk 0:00:08]} 73. Kg1 {[%clk 0:00:08]}  Kg3 {[%clk 0:00:09]} 74. Kh1 {[%clk 0:00:09]}  h3 {[%clk 0:00:10]} 75. Kg1 {[%clk 0:00:10]}  h2+ {[%clk 0:00:10]} 76. Kh1 {[%clk 0:00:11]}  Kh3 {[%clk 0:00:11]} 1/2-1/2


[Site "https://www.chess.com"]

[Event "Titled Tuesday Blitz March 15 Early 2022"]
[White "Thavandiran, Shiyam"]
[Black "Jaskolka, Tomasz"]
[WhiteFideId "2605058"]
[BlackFideId "1170791"]
[WhiteElo "2357"]
[BlackElo "2073"]
[Result "1-0"]
[Round "01"]
[TimeControl "180+1"]
[Date "2022.03.15"]
[WhiteClock "0:02:11"]
[BlackClock "0:00:57"]

1. e4 {[%clk 0:02:58]}  c5 {[%clk 0:02:56]} 2. Nf3 {[%clk 0:02:57]}  e6 {[%clk 0:02:56]} 3. d4 {[%clk 0:02:58]}  cxd4 {[%clk 0:02:56]} 4. Nxd4 {[%clk 0:02:58]}  Nc6 {[%clk 0:02:57]} 5. Nb5 {[%clk 0:02:58]}  d6 {[%clk 0:02:46]} 6. c4 {[%clk 0:02:58]}  Nf6 {[%clk 0:02:39]} 7. N5c3 {[%clk 0:02:57]}  Be7 {[%clk 0:02:34]} 8. Be2 {[%clk 0:02:57]}  O-O {[%clk 0:02:33]} 9. O-O {[%clk 0:02:56]}  a6 {[%clk 0:02:16]} 10. Bf4 {[%clk 0:02:54]}  e5 {[%clk 0:02:03]} 11. Be3 {[%clk 0:02:54]}  Be6 {[%clk 0:02:03]} 12. Nd2 {[%clk 0:02:54]}  Nd7 {[%clk 0:02:00]} 13. Rb1 {[%clk 0:02:38]}  f5 {[%clk 0:01:49]} 14. exf5 {[%clk 0:02:35]}  Bxf5 {[%clk 0:01:49]} 15. Nde4 {[%clk 0:02:35]}  Nf6 {[%clk 0:01:46]} 16. Bd3 {[%clk 0:02:35]}  Nb4 {[%clk 0:01:29]} 17. Nxf6+ {[%clk 0:02:31]}  Rxf6 {[%clk 0:01:30]} 18. Bxf5 {[%clk 0:02:28]}  Rxf5 {[%clk 0:01:31]} 19. Qb3 {[%clk 0:02:16]}  Nc6 {[%clk 0:01:01]} 20. Qxb7 {[%clk 0:02:15]}  Na5 {[%clk 0:00:57]} 21. Qd5+ {[%clk 0:02:10]}  Kh8 {[%clk 0:00:57]} 22. b4 {[%clk 0:02:11]} 1-0


[Site "https://www.chess.com"]

[Event "Titled Tuesday Blitz March 15 Early 2022"]
[White "Thomas, Anysia"]
[Black "Mitusov, Semen"]
[WhiteFideId "670472"]
[BlackFideId "14151049"]
[WhiteElo "2002"]
[BlackElo "2265"]
[Result "1-0"]
[Round "01"]
[TimeControl "180+1"]
[Date "2022.03.15"]
[WhiteClock "0:00:06"]
[BlackClock "0:00:09"]

1. d4 {[%clk 0:02:57]}  d5 {[%clk 0:02:59]} 2. c4 {[%clk 0:02:47]}  dxc4 {[%clk 0:03:00]} 3. Nf3 {[%clk 0:02:46]}  Nf6 {[%clk 0:03:00]} 4. Nc3 {[%clk 0:02:45]}  a6 {[%clk 0:02:54]} 5. e4 {[%clk 0:02:37]}  e6 {[%clk 0:02:51]} 6. Bxc4 {[%clk 0:02:36]}  b5 {[%clk 0:02:50]} 7. Bd3 {[%clk 0:02:29]}  Bb7 {[%clk 0:02:50]} 8. a3 {[%clk 0:02:26]}  c5 {[%clk 0:02:41]} 9. dxc5 {[%clk 0:02:23]}  Bxc5 {[%clk 0:02:37]} 10. Bg5 {[%clk 0:02:19]}  h6 {[%clk 0:02:28]} 11. Bh4 {[%clk 0:02:18]}  Be7 {[%clk 0:02:22]} 12. O-O {[%clk 0:02:17]}  O-O {[%clk 0:02:14]} 13. Qe2 {[%clk 0:02:11]}  Nfd7 {[%clk 0:01:51]} 14. Bg3 {[%clk 0:02:03]}  Nc6 {[%clk 0:01:45]} 15. Rfd1 {[%clk 0:02:02]}  Qb6 {[%clk 0:01:28]} 16. Rac1 {[%clk 0:01:59]}  Rad8 {[%clk 0:01:25]} 17. Bb1 {[%clk 0:01:54]}  Nc5 {[%clk 0:01:19]} 18. Bc2 {[%clk 0:01:47]}  Rxd1+ {[%clk 0:01:07]} 19. Rxd1 {[%clk 0:01:47]}  Rd8 {[%clk 0:01:08]} 20. Bf4 {[%clk 0:01:44]}  Rxd1+ {[%clk 0:01:00]} 21. Qxd1 {[%clk 0:01:43]}  Qd8 {[%clk 0:01:00]} 22. Qe2 {[%clk 0:01:39]}  Nd4 {[%clk 0:00:55]} 23. Nxd4 {[%clk 0:01:38]}  Qxd4 {[%clk 0:00:56]} 24. Be3 {[%clk 0:01:37]}  Qd7 {[%clk 0:00:53]} 25. h3 {[%clk 0:01:35]}  e5 {[%clk 0:00:48]} 26. b4 {[%clk 0:01:26]}  Ne6 {[%clk 0:00:48]} 27. Qg4 {[%clk 0:01:08]}  Nf8 {[%clk 0:00:35]} 28. Qg3 {[%clk 0:01:00]}  Qd6 {[%clk 0:00:31]} 29. Nd5 {[%clk 0:00:56]}  Ng6 {[%clk 0:00:29]} 30. Bb3 {[%clk 0:00:50]}  Bh4 {[%clk 0:00:25]} 31. Qg4 {[%clk 0:00:39]}  Kh7 {[%clk 0:00:18]} 32. g3 {[%clk 0:00:37]}  Bd8 {[%clk 0:00:17]} 33. h4 {[%clk 0:00:37]}  Bxd5 {[%clk 0:00:16]} 34. Bxd5 {[%clk 0:00:36]}  Qc7 {[%clk 0:00:14]} 35. h5 {[%clk 0:00:34]}  Nf8 {[%clk 0:00:14]} 36. Qf5+ {[%clk 0:00:33]}  Kg8 {[%clk 0:00:15]} 37. Qg4 {[%clk 0:00:29]}  Qd6 {[%clk 0:00:13]} 38. Bc5 {[%clk 0:00:29]}  Qf6 {[%clk 0:00:13]} 39. Qc8 {[%clk 0:00:25]}  Be7 {[%clk 0:00:10]} 40. Be3 {[%clk 0:00:22]}  Qd6 {[%clk 0:00:07]} 41. Qg4 {[%clk 0:00:19]}  Qd8 {[%clk 0:00:06]} 42. Bxh6 {[%clk 0:00:18]}  Bf6 {[%clk 0:00:07]} 43. Be3 {[%clk 0:00:17]}  Qc7 {[%clk 0:00:08]} 44. h6 {[%clk 0:00:17]}  g6 {[%clk 0:00:08]} 45. Kg2 {[%clk 0:00:16]}  Qd6 {[%clk 0:00:08]} 46. Bg5 {[%clk 0:00:15]}  Kh7 {[%clk 0:00:07]} 47. Bxf6 {[%clk 0:00:15]}  Qxf6 {[%clk 0:00:08]} 48. Qe2 {[%clk 0:00:14]}  Qe7 {[%clk 0:00:07]} 49. Qg4 {[%clk 0:00:14]}  Nd7 {[%clk 0:00:07]} 50. Bc6 {[%clk 0:00:14]}  Nf6 {[%clk 0:00:07]} 51. Qe2 {[%clk 0:00:13]}  Qd6 {[%clk 0:00:07]} 52. Qc2 {[%clk 0:00:12]}  Kxh6 {[%clk 0:00:07]} 53. Bb7 {[%clk 0:00:10]}  Kg7 {[%clk 0:00:08]} 54. Bc8 {[%clk 0:00:10]}  Qd4 {[%clk 0:00:07]} 55. Bb7 {[%clk 0:00:10]}  Ng4 {[%clk 0:00:07]} 56. Qe2 {[%clk 0:00:09]}  Nf6 {[%clk 0:00:07]} 57. Qf3 {[%clk 0:00:09]}  Nd7 {[%clk 0:00:07]} 58. Bd5 {[%clk 0:00:09]}  Nf6 {[%clk 0:00:07]} 59. g4 {[%clk 0:00:09]}  Qb2 {[%clk 0:00:07]} 60. g5 {[%clk 0:00:09]}  Nxd5 {[%clk 0:00:08]} 61. exd5 {[%clk 0:00:08]}  Qd4 {[%clk 0:00:09]} 62. Qf6+ {[%clk 0:00:07]}  Kg8 {[%clk 0:00:09]} 63. Qd8+ {[%clk 0:00:07]}  Kh7 {[%clk 0:00:10]} 64. Qd7 {[%clk 0:00:06]}  Qg4+ {[%clk 0:00:09]} 65. Qxg4 {[%clk 0:00:06]}  Kg7 {[%clk 0:00:09]} 66. Qh4 {[%clk 0:00:06]} 1-0


[Site "https://www.chess.com"]

[Event "Titled Tuesday Blitz March 15 Early 2022"]
[White "Urazayev, Arystanbek"]
[Black "Agrest, Evgenij"]
[WhiteFideId "13709810"]
[BlackFideId "1705024"]
[WhiteElo "2393"]
[BlackElo "2574"]
[Result "1-0"]
[Round "01"]
[TimeControl "180+1"]
[Date "2022.03.15"]
[WhiteClock "0:00:40"]
[BlackClock "0:00:02"]

1. d4 {[%clk 0:03:00]}  d6 {[%clk 0:02:57]} 2. e4 {[%clk 0:03:00]}  g6 {[%clk 0:02:55]} 3. Nf3 {[%clk 0:02:59]}  Bg7 {[%clk 0:02:55]} 4. c3 {[%clk 0:03:00]}  Nc6 {[%clk 0:02:52]} 5. Bb5 {[%clk 0:02:50]}  a6 {[%clk 0:02:51]} 6. Ba4 {[%clk 0:02:49]}  b5 {[%clk 0:02:49]} 7. Bb3 {[%clk 0:02:49]}  e6 {[%clk 0:02:46]} 8. O-O {[%clk 0:02:46]}  Nce7 {[%clk 0:02:44]} 9. a4 {[%clk 0:02:43]}  Bb7 {[%clk 0:02:43]} 10. Nbd2 {[%clk 0:02:39]}  Nf6 {[%clk 0:02:41]} 11. Re1 {[%clk 0:02:39]}  O-O {[%clk 0:02:40]} 12. h3 {[%clk 0:02:38]}  c5 {[%clk 0:02:37]} 13. Qe2 {[%clk 0:02:28]}  c4 {[%clk 0:02:33]} 14. Bc2 {[%clk 0:02:28]}  Qc7 {[%clk 0:02:29]} 15. Nf1 {[%clk 0:02:25]}  e5 {[%clk 0:02:25]} 16. d5 {[%clk 0:02:23]}  Nh5 {[%clk 0:02:23]} 17. Be3 {[%clk 0:02:18]}  f5 {[%clk 0:02:17]} 18. Ng5 {[%clk 0:02:18]}  fxe4 {[%clk 0:02:12]} 19. Ne6 {[%clk 0:02:13]}  Qd7 {[%clk 0:02:11]} 20. Nxf8 {[%clk 0:02:11]}  Rxf8 {[%clk 0:02:10]} 21. axb5 {[%clk 0:02:10]}  axb5 {[%clk 0:02:08]} 22. Ra7 {[%clk 0:02:10]}  Nc8 {[%clk 0:02:05]} 23. Ra5 {[%clk 0:02:06]}  Bxd5 {[%clk 0:02:04]} 24. Nd2 {[%clk 0:01:56]}  Qb7 {[%clk 0:01:48]} 25. b3 {[%clk 0:01:42]}  cxb3 {[%clk 0:01:32]} 26. Rxb5 {[%clk 0:01:42]}  bxc2 {[%clk 0:01:27]} 27. Rxb7 {[%clk 0:01:41]}  Bxb7 {[%clk 0:01:27]} 28. Qb5 {[%clk 0:01:33]}  Rf7 {[%clk 0:01:20]} 29. Rc1 {[%clk 0:01:26]}  Nf4 {[%clk 0:01:15]} 30. Rxc2 {[%clk 0:01:26]}  d5 {[%clk 0:01:10]} 31. Bc5 {[%clk 0:01:22]}  Nd3 {[%clk 0:00:48]} 32. Qe8+ {[%clk 0:01:19]}  Bf8 {[%clk 0:00:47]} 33. Bxf8 {[%clk 0:01:18]}  Rxf8 {[%clk 0:00:47]} 34. Qe6+ {[%clk 0:01:19]}  Rf7 {[%clk 0:00:45]} 35. Nb3 {[%clk 0:01:15]}  Kg7 {[%clk 0:00:41]} 36. Na5 {[%clk 0:01:04]}  Re7 {[%clk 0:00:36]} 37. Qg4 {[%clk 0:01:04]}  Ba6 {[%clk 0:00:28]} 38. c4 {[%clk 0:00:52]}  Nd6 {[%clk 0:00:18]} 39. cxd5 {[%clk 0:00:49]}  Nf4 {[%clk 0:00:17]} 40. Nc6 {[%clk 0:00:47]}  Re8 {[%clk 0:00:14]} 41. g3 {[%clk 0:00:46]}  Ne2+ {[%clk 0:00:13]} 42. Rxe2 {[%clk 0:00:46]}  Bxe2 {[%clk 0:00:13]} 43. Qd7+ {[%clk 0:00:46]}  Kh6 {[%clk 0:00:11]} 44. Qxd6 {[%clk 0:00:46]}  Ra8 {[%clk 0:00:11]} 45. Nxe5 {[%clk 0:00:45]}  Ra1+ {[%clk 0:00:10]} 46. Kh2 {[%clk 0:00:46]}  Rf1 {[%clk 0:00:08]} 47. Qf8+ {[%clk 0:00:46]}  Kh5 {[%clk 0:00:07]} 48. Qf4 {[%clk 0:00:39]}  g5 {[%clk 0:00:03]} 49. g4+ {[%clk 0:00:39]}  Kh4 {[%clk 0:00:02]} 50. Qg3# {[%clk 0:00:40]} 1-0


[Site "https://www.chess.com"]